Cogmind - Beta 17.1 @@@ ROGUE MODE // 2026.09.16 @ 20:30:18 Player: 4R-ZE3 Result: Self-destructed Performance ------------- Evolutions (4) 2000 Regions Visited (11) 2200 Robots Destroyed (168) 840 Value Destroyed (6241) 6241 Prototype IDs (10) 200 Alien Tech Used (0) 0 Bonus (1453) 1453 TOTAL SCORE: 12934 Bonus ------- High Alert Combat Kills 520 Follower Combat Kills 233 Entered Garrisons 200 Used RIF Installer 500 Cogmind --------- Core Integrity 578/850 Matter 225/300 Energy 310/310 System Corruption 39% Temperature Cool (54) Movement Core (1750) Ox34 Location -6/Factory Parts ------- > --- POWER (2) -------- Reinforced Fission Core (fused) > --- PROPULSION (4) --- (None) > --- UTILITY (6) ------ Armored Scrap Engine Improved Cooling System Huge Storage Unit Improved Signal Interpreter Graphene Brace > --- WEAPON (3) ------- (None) > --- INVENTORY (25) --- Reinforced Deuterium Engine Advanced Heat Sink Improved Trap Scanner Improved Sensor Array Improved Sensor Array Advanced Terrain Scanner Advanced Weapon Cycler EM Shield Relay Coupler [NC] (31) Relay Coupler [Grunt] (23) Relay Coupler [Grunt] (19) Dynamic Insulation System System Restoration Module Gauss Rifle Gauss Rifle Gauss Rifle Flak Gun Flak Cannon Flak Cannon Advanced Assault Cannon Advanced Assault Cannon Enhanced Gauss Cannon Enhanced Gauss Cannon Enhanced Gauss Cannon Remote Datajack Peak State ------------ > --- POWER ------------ Reinforced Fission Core Antimatter Reactor > --- PROPULSION ------- Armored Treads Armored Heavy Treads Treaded Heavy Exoskeleton > --- UTILITY ---------- Armored Scrap Engine Huge Storage Unit Improved Signal Interpreter Relay Coupler [NC] Dynamic Insulation System > --- WEAPON ----------- Gatling Laser Plasma Rifle Remote Datajack > --- INVENTORY -------- Reinforced Deuterium Engine Gravmag System Improved Heat Sink Improved Heat Sink Cooling System Trap Scanner Improved Sensor Array Advanced Weapon Cycler Graphene Brace EM Shield Relay Coupler [NC] Relay Coupler [Grunt] System Restoration Module Plasma Cannon Gauss Rifle Gauss Rifle Flak Cannon Flak Cannon Advanced Assault Cannon Advanced Assault Cannon Heavy Flak Cannon Enhanced Gauss Cannon Enhanced Gauss Cannon Enhanced Gauss Cannon [Rating: 91] Favorites ----------- Power Heavy Ion Engine Engine Heavy Ion Engine Power Core Reinforced Fission Core Reactor Antimatter Reactor Propulsion Light Treads Treads Light Treads Leg Aluminum Leg Wheel Compact Wheel Hover Unit Gravmag System Utility Huge Storage Unit Device Improved Heat Sink Storage Huge Storage Unit Processor Improved Signal Interpreter Hackware Relay Coupler [NC] Weapon Particle Cannon Energy Gun Gatling Laser Energy Cannon Particle Cannon Ballistic Gun Constructs Ballistic Cannon Enhanced Gauss Cannon Launcher Rocket Launcher Special Weapon Remote Datajack Build | -11 -10 -10 -9 -9 -9 -7 -7 -7 -6 -6 -6 ------- Run | Yrd Mat Min Mat Sto Rec Fac Gar Fac Fac Was Fac Slots Evolved 8 | . . . 2 . . 4 . . 2 . . Power 1 | . . . . . . 1 . . . . . Propulsion 2 | . . . . . . 1 . . 1 . . Utility 4 | . . . 1 . . 2 . . 1 . . Weapon 1 | . . . 1 . . . . . . . . Parts Attached 90 | . 10 3 15 3 4 11 18 3 5 2 16 Power 14 | . 1 . 3 . 2 3 3 . 1 1 . Engine 7 | . 1 . 2 . 2 . 1 . 1 . . Core 6 | . . . 1 . . 3 2 . . . . Reactor 1 | . . . . . . . . . . 1 . Propulsion 20 | . 2 1 7 1 . 2 2 . 1 . 4 Treads 14 | . 2 . 6 1 . 2 2 . . . 1 Leg . | . . . . . . . . . . . . Wheel 5 | . . 1 1 . . . . . . . 3 Hover 1 | . . . . . . . . . 1 . . Flight . | . . . . . . . . . . . . Utility 30 | . 2 2 2 . 2 4 4 3 2 1 8 Device 24 | . 1 1 1 . 2 4 4 1 1 1 8 Storage 4 | . 1 1 1 . . . . 1 . . . Processor 1 | . . . . . . . . . 1 . . Hackware 1 | . . . . . . . . 1 . . . Protection . | . . . . . . . . . . . . Artifact . | . . . . . . . . . . . . Weapon 26 | . 5 . 3 2 . 2 9 . 1 . 4 Energy Gun 8 | . 2 . . 2 . 1 2 . 1 . . Energy Cannon 10 | . 3 . 3 . . . 1 . . . 3 Ballistic Gun . | . . . . . . . . . . . . Ballistic Cannon 6 | . . . . . . . 5 . . . 1 Launcher 1 | . . . . . . . 1 . . . . Special Weapon 1 | . . . . . . 1 . . . . . Impact Weapon . | . . . . . . . . . . . . Slashing Weapon . | . . . . . . . . . . . . Piercing Weapon . | . . . . . . . . . . . . Special Melee Weapon . | . . . . . . . . . . . . Unidentified Prototypes 6 | . . . 2 2 1 1 . . . . . Parts Lost 37 | . 2 1 2 . 3 4 11 . . . 14 Power 11 | . 1 . 1 . 1 2 4 . . . 2 Propulsion 7 | . . 1 1 . . . 1 . . . 4 Utility 7 | . . . . . 1 2 1 . . . 3 Weapon 12 | . 1 . . . 1 . 5 . . . 5 Highest Loss Streak 8 | . 1 1 2 . 3 2 5 . . . 8 To Critical Strikes . | . . . . . . . . . . . . Average Backups 21 | . 9 15 20 24 20 22 22 24 24 24 24 Power 1 | . . 1 2 4 3 2 . 1 1 1 1 Propulsion 3 | . 2 2 5 8 4 5 1 1 . 1 . Utility 7 | . . 2 2 3 4 6 11 13 12 11 10 Weapon 8 | . 5 10 9 9 8 8 8 8 10 11 10 Tool/Special . | . . . . . . . . . . . . Unused Backups 66 | . 6 1 5 5 9 17 3 3 1 . 16 Power 2 | . 1 . . . . . . . . . 1 Propulsion 25 | . 2 . 3 2 6 10 1 . . . 1 Utility 14 | . 1 1 . . . 2 1 2 1 . 6 Weapon 24 | . 2 . 2 3 3 5 1 1 . . 7 Tool/Special 1 | . . . . . . . . . . . 1 Average Slot Usage (%) 82 | . 96 98 98 99 61 64 75 84 83 85 87 Engine 7 | . 13 14 5 11 10 6 4 7 6 2 4 Core 4 | . . . 5 . . 6 8 7 6 6 6 Treads 12 | . 20 22 17 22 12 3 5 15 13 13 14 Wheel 2 | . . 3 3 . 1 3 1 . . . 9 Hover 1 | . . . . . . 1 2 . 4 4 . Device 18 | . 10 14 21 22 12 21 22 17 13 13 19 Storage 9 | . 14 14 11 11 11 7 7 7 6 6 6 Processor 1 | . . . . . . . . . 4 6 6 Energy Gun 3 | . 4 . . . . . 9 . 2 11 3 Energy Cannon 12 | . 12 28 32 32 12 5 2 . . . 10 Ballistic Cannon 2 | . . . . . . 1 6 15 9 1 2 Special Weapon 1 | . . . . . . 3 1 6 6 6 . Peak Build Rating 91 | . 11 13 22 24 36 60 79 79 87 91 91 Average Rating 47 | . 7 11 19 22 32 52 65 78 84 87 79 On Entrance 42 | 6 6 11 13 22 23 36 60 79 78 87 91 Avg Prop Armor Cover (%) 9 | . . 12 12 . 10 . . . 2 2 12 Naked Turns . | . . . . . . . . . . . . Heaviest Build 142 | 13 34 54 102 102 102 112 131 131 130 131 142 Greatest Support 123 | 20 40 40 40 40 40 49 80 80 80 112 123 Greatest Overweight (x) 8 | . . 3 4 2 4 5 8 1 1 1 8 Average Overweight (x) 1 | . . . 1 2 2 2 3 1 1 1 2 Largest Inventory Capacity 25 | . 15 20 25 25 25 25 25 25 25 25 25 Average Capacity 22 | . 11 15 22 25 25 25 25 25 25 25 25 Most Carried 25 | . 15 16 25 25 25 25 25 25 25 25 25 Average Carried 21 | . 9 15 20 24 20 22 22 24 24 24 24 Final Capacity 25 | 8 15 20 25 25 25 25 25 25 25 25 25 Final Carried 25 | 6 15 16 25 25 21 25 25 25 25 24 25 Scrap Engine Consumption 90 | . . . . . 28 34 3 2 1 6 16 Constructs Created 5 | . . . . . 2 . . . . 1 2 Constructs Modified 25 | . . . . . 8 9 2 . . . 6 Class Distribution -------------------- 27% | Construct 20% | Mutant 16% | Tank 13% | Gunner 13% | Skirmisher 8% | Scavenger-Gunner Dominant Class ---------------- Mutant | -10/Materials Mutant | -10/Mines Gunner | -9/Materials Scavenger-Gunner | -9/Storage Construct | -9/Recycling Construct | -7/Factory Tank | -7/Garrison Tank | -7/Factory Skirmisher | -6/Factory Tank | -6/Waste Skirmisher | -6/Factory Resources | -11 -10 -10 -9 -9 -9 -7 -7 -7 -6 -6 -6 ----------- Run | Yrd Mat Min Mat Sto Rec Fac Gar Fac Fac Was Fac Matter Collected 2664 | 200 227 30 185 91 71 161 667 . . 223 809 Remotely . | . . . . . . . . . . . . Salvage Created 7710 | . 468 449 1057 1137 731 833 1021 . . 498 1516 Parts 367 | . 32 25 75 48 29 45 39 . . 6 68 Haulers Intercepted 5 | . . . 3 2 . . . . . . . Recyclers Shooed 6 | . . 2 . . 1 . . . . . 3 Parts Field Recycled . | . . . . . . . . . . . . Retrieved Matter . | . . . . . . . . . . . . Parts Self-Destructed . | . . . . . . . . . . . . Prevented . | . . . . . . . . . . . . Parts Restored . | . . . . . . . . . . . . Kills | -11 -10 -10 -9 -9 -9 -7 -7 -7 -6 -6 -6 ------- Run | Yrd Mat Min Mat Sto Rec Fac Gar Fac Fac Was Fac Combat Hostiles Destroyed 131 | . 14 10 17 16 5 17 29 . . 2 21 Guns 23 | . 8 . . . . . 9 . . 2 4 Cannons 92 | . 6 10 17 14 5 17 11 . . . 12 AOE 12 | . . . . . . . 8 . . . 4 Classes Destroyed 19 | . 3 2 3 . 2 2 4 . . 1 2 Worker 6 | . 1 . 2 . . . . . . . 3 Builder 3 | . . . . . . . . . . . 3 Tunneler 3 | . . 2 . . . . . . . . 1 Hauler 5 | . . . 3 2 . . . . . . . Recycler 15 | . . 2 1 4 3 . . . . . 5 Operator 1 | . . . . . . 1 . . . . . Watcher 4 | . . . 2 1 . . . . . . 1 Swarmer 31 | . 6 6 2 3 . 3 4 . . . 7 Grunt 54 | . 8 4 9 4 . 9 16 . . . 4 Duelist 1 | . . . . . . . 1 . . . . Sentry 25 | . . . 6 9 2 2 3 . . . 3 Demolisher 2 | . . . . . . . 2 . . . . Specialist 3 | . . . . . . . 1 . . . 2 Hunter 2 | . . . . . . . . . . . 2 Programmer 7 | . . . . . . 3 1 . . . 3 Behemoth 1 | . . . . . . . 1 . . . . Compactor 2 | . . . . . . . . . . 2 . Scientist 2 | . . . . . 2 . . . . . . Scrapper 3 | . . . . . 3 . . . . . . Best Kill Streak 15 | . 4 3 4 5 4 3 6 . . 1 15 Combat Bots Only 7 | . 4 3 3 4 3 3 6 . . 1 7 Max Kills in Single Turn 11 | . 1 1 1 2 1 1 3 . . 1 11 Gunslinging . | . . . . . . . . . . . . Exploded 4 | . . . . . . . 3 . . . 4 Melee . | . . . . . . . . . . . . Uniques/NPCs Destroyed . | . . . . . . . . . . . . Combat | -11 -10 -10 -9 -9 -9 -7 -7 -7 -6 -6 -6 -------- Run | Yrd Mat Min Mat Sto Rec Fac Gar Fac Fac Was Fac Hostile Shots Fired 985 | . 84 30 42 48 22 194 322 . 7 . 236 Missed 310 | . 23 6 10 13 3 76 118 . 1 . 60 Hits 675 | . 61 24 32 35 19 118 204 . 6 . 176 Projectile 675 | . 61 24 32 35 19 118 204 . 6 . 176 AOE 15 | . . . . . . . 15 . . . . Critical Strikes 17 | . . 1 . . 2 5 4 . 1 . 4 Actively Blocked 2 | . . . . . . . . . . . 2 Damage Taken 9620 | . 668 229 419 449 394 1389 3250 . 114 . 2708 Core 1352 | . 128 31 81 99 93 274 374 . . . 272 Absorbed by Shields . | . . . . . . . . . . . . Reduced by Siege Mode 108 | . . . . . . . 63 . . . 45 Regen/Repaired (Parts) 1326 | . . . . . . 577 357 . 44 . 348 Core Remaining (%) 43 | 100 . 36 . . 31 . . 7 . . . Volleys Fired 543 | . 58 28 37 39 36 98 98 1 11 44 93 Largest 3 | . 2 2 3 3 3 1 3 1 1 2 3 Hottest 245 | . 136 136 204 204 204 74 215 47 75 155 245 Shots Fired 998 | . 116 56 110 112 57 96 183 1 11 80 176 Gun 267 | . 80 . . . . . 81 . 1 72 33 Cannon 710 | . 36 56 110 112 57 96 90 1 9 . 143 Launcher 12 | . . . . . . . 12 . . . . Special 9 | . . . . . . . . . 1 8 . Kinetic 165 | . 65 . . . . 9 47 1 9 . 34 Thermal 797 | . 36 56 110 112 57 87 124 . 1 72 142 Explosive 12 | . . . . . . . 12 . . . . Electromagnetic 15 | . 15 . . . . . . . . . . Robot Hit Streak 24 | . 8 7 9 21 18 17 18 . 2 24 16 Robot Miss Streak 8 | . 8 2 4 3 2 3 4 . 1 3 7 Penetration Max . | . . . . . . . . . . . . Secondary Targets 3 | . 3 . . . . . . . . . . Max Gunslinging Chain 1 | . 1 . . . . . . . . . . Shots Hit Robots 604 | . 58 29 59 74 38 61 122 . 2 71 90 Core Hits 281 | . 21 16 28 22 14 24 81 . . 15 60 Critical Kills 1 | . . . . 1 . . . . . . . Critical Parts Destroyed . | . . . . . . . . . . . . Critical Strikes 8 | . 1 . . 1 . 2 2 . . 1 1 Burn 5 | . . . . . . 2 1 . . 1 1 Meltdown 1 | . . . . 1 . . . . . . . Blast 1 | . . . . . . . 1 . . . . Corrupt 1 | . 1 . . . . . . . . . . Melee Attacks . | . . . . . . . . . . . . Impact . | . . . . . . . . . . . . Slashing . | . . . . . . . . . . . . Piercing . | . . . . . . . . . . . . Sneak Attacks . | . . . . . . . . . . . . Combat Hostiles . | . . . . . . . . . . . . Follow-up Attacks . | . . . . . . . . . . . . Damage Inflicted 16464 | . 874 618 1265 1563 844 2087 3846 . 22 1715 3630 Guns 4276 | . 438 . . . . . 1581 . 22 1715 520 Cannons 10194 | . 436 618 1265 1563 844 2087 1365 . . . 2016 Explosions 1994 | . . . . . . . 900 . . . 1094 Melee . | . . . . . . . . . . . . Ramming . | . . . . . . . . . . . . Kinetic 1719 | . 284 . . . . 213 567 . . . 655 Thermal 13691 | . 436 618 1265 1563 844 1874 2379 . 22 1715 2975 Explosive 900 | . . . . . . . 900 . . . . Electromagnetic 154 | . 154 . . . . . . . . . . Impact . | . . . . . . . . . . . . Slashing . | . . . . . . . . . . . . Piercing . | . . . . . . . . . . . . Highest Corruption 39 | . . . . 2 2 2 2 2 . 39 39 Average Corruption 10 | . . . . 2 2 2 2 2 . 21 39 Corruption Purged . | . . . . . . . . . . . . Corruption Blocked . | . . . . . . . . . . . . Effects 222 | . . . . 12 20 12 38 7 . 26 107 Message Errors 53 | . . . . 1 5 8 10 2 . 5 22 Matter Fused 43 | . . . . 5 4 2 5 3 . 6 18 Heat Flow Errors 23 | . . . . 1 3 . 5 1 . . 13 Energy Discharges 28 | . . . . . 3 . 9 1 . 4 11 Parts Rejected 5 | . . . . . . . . . . 3 2 Parts Fused 5 | . . . . . 1 . . . . 1 3 Data Loss (minor) 21 | . . . . 1 2 . 3 . . . 15 Data Loss (major) 10 | . . . . 1 . . 3 . . 2 4 Misfires 10 | . . . . 1 1 . 2 . . 1 5 Alerts 3 | . . . . . 1 . 1 . . 1 . Misdirections 2 | . . . . . . . . . . 2 . Weapon Failures 19 | . . . . 2 . 2 . . . 1 14 Overload Shots . | . . . . . . . . . . . . Overflow Damage 289 | . . 2 1 . 30 57 5 . . . 194 Projectiles 129 | . . 2 1 . 30 57 5 . . . 34 Explosions 160 | . . . . . . . . . . . 160 Melee . | . . . . . . . . . . . . Knockbacks 7 | . . . . . . . 4 . . . 3 Impact . | . . . . . . . . . . . . Kinetic 7 | . . . . . . . 4 . . . 3 Secondary . | . . . . . . . . . . . . Self-Inflicted Damage 34 | . . . . . . . 34 . . . . Shots 2 | . . . . . . . 2 . . . . Rammed . | . . . . . . . . . . . . Targets Rammed . | . . . . . . . . . . . . Kicked . | . . . . . . . . . . . . Crushed . | . . . . . . . . . . . . Highest Temperature 364 | . 321 270 320 256 276 63 364 137 40 319 340 Average Temperature 82 | . 70 92 78 86 79 25 96 59 15 82 91 Received Heat Transfer 2858 | . 174 81 117 135 221 534 1155 . 72 . 369 Effects 8 | . . . . 2 . . 2 . . . 4 Shutdowns 2 | . . . . . . . 1 . . . 1 Energy Bleed 1 | . . . . . . . 1 . . . . Interference 5 | . . . . 2 . . . . . . 3 Siege Activations 3 | . . . . . . . 2 . . . 1 Total Turns 61 | . . . . . . . 30 . . . 31 Longest Duration 31 | . . . . . . . 22 . . . 31 Martial Activations . | . . . . . . . . . . . . Shielding Activations . | . . . . . . . . . . . . Robots Disrupted . | . . . . . . . . . . . . Combat Hostiles . | . . . . . . . . . . . . Robots Corrupted . | . . . . . . . . . . . . Combat Hostiles . | . . . . . . . . . . . . Parts Fried . | . . . . . . . . . . . . Impact Corruptions . | . . . . . . . . . . . . Robots Melted 5 | . . . . 3 . . 1 . . . 1 Combat Hostiles 4 | . . . . 2 . . 1 . . . 1 Parts Melted 57 | . . 3 9 13 5 6 11 . . 1 9 Heat Transferred 23166 | . 851 1110 2257 2812 1251 2294 4231 . 50 4025 4285 Parts Sabotaged . | . . . . . . . . . . . . Parts Stolen . | . . . . . . . . . . . . Parts Stripped . | . . . . . . . . . . . . Power Chain Reactions . | . . . . . . . . . . . . Alert | -11 -10 -10 -9 -9 -9 -7 -7 -7 -6 -6 -6 ------- Run | Yrd Mat Min Mat Sto Rec Fac Gar Fac Fac Was Fac Maximum Alert Level 4 | . . . 2 2 . . 4 3 1 . 1 Low Security (%) 60 | . 100 100 47 3 100 100 19 . 58 100 31 Level 1 18 | . . . 24 92 . . 3 . 41 . 68 Level 2 9 | . . . 28 3 . . 24 42 . . . Level 3 8 | . . . . . . . 35 57 . . . Level 4 3 | . . . . . . . 18 . . . . Level 5 . | . . . . . . . . . . . . High Security . | . . . . . . . . . . . . Max Security . | . . . . . . . . . . . . Peak Influence 1581 | . 135 120 506 408 154 162 1581 829 307 18 370 Initial 829 | . . 38 . 211 154 125 109 829 302 18 . Average 255 | . 77 25 228 308 20 57 723 716 179 . 229 Influence Increases 5690 | . 463 289 1034 553 151 673 1582 35 21 . 889 Destroy 0b10 Robot/C 2740 | . 280 200 560 320 40 340 580 . . . 420 Destroy 0b10 Robot/NC 210 | . 5 20 55 35 25 5 . . . . 65 Destroy Leader 640 | . 70 40 172 126 . 90 30 . . . 112 Allied During Kill 104 | . . 14 90 . . . . . . . . Successful Hack 79 | . 16 . 5 12 10 . . 20 . . 16 Select Force Hacks 180 | . 60 . 60 . 60 . . . . . . Disable Machine 465 | . 15 15 60 45 15 30 60 15 15 . 195 Anti-Garrison Action 750 | . . . . . . . 750 . . . . Destroy Structure 137 | . 2 . 2 . 1 18 42 . 6 . 66 Advance Influence 100 | . . . . . . 100 . . . . . Partial Spotted 15 | . . . 15 . . . . . . . . Lose Combat Pursuer 270 | . 15 . 15 15 . 90 120 . . . 15 Influence Decreases 5392 | . 364 388 532 659 487 577 157 998 586 53 591 Entered New Map 1779 | . . 61 . 291 242 35 47 752 316 35 . Time Decay 3213 | . 344 317 472 368 215 502 . 246 270 18 461 Lost Part 340 | . 20 10 . . 30 40 110 . . . 130 Lost Ally 60 | . . . 60 . . . . . . . . Squads Dispatched 23 | . 5 . 4 . . 6 . 1 1 . 6 Investigation 6 | . 3 . 2 . . . . . . . 1 Extermination 5 | . . . . . . 3 . . . . 2 Reinforcement 10 | . 2 . 1 . . 3 . . 1 . 3 Assault 2 | . . . 1 . . . . 1 . . . Garrison . | . . . . . . . . . . . . Intercept . | . . . . . . . . . . . . Searches Triggered . | . . . . . . . . . . . . Construction Impeded 1 | . . . . . . . . . . . 1 Haulers Reinforced . | . . . . . . . . . . . . Active Scanning Responses . | . . . . . . . . . . . . Cargo Convoy Interrupts 1 | . . . . . . . . . . . 1 Stealth | -11 -10 -10 -9 -9 -9 -7 -7 -7 -6 -6 -6 --------- Run | Yrd Mat Min Mat Sto Rec Fac Gar Fac Fac Was Fac Distress Signals 7 | . 3 . 2 . . 1 . . . . 1 Communications Jammed . | . . . . . . . . . . . . Distress Signals . | . . . . . . . . . . . . Times Spotted 207 | . 27 9 43 21 5 25 38 . 4 6 29 Peak Tracking Total 8 | . 5 3 5 4 3 3 6 . 3 2 8 Tactical Retreats 16 | . 1 . 1 1 . 4 8 . . . 1 Traps | -11 -10 -10 -9 -9 -9 -7 -7 -7 -6 -6 -6 ------- Run | Yrd Mat Min Mat Sto Rec Fac Gar Fac Fac Was Fac Traps Triggered 17 | . 2 . 1 1 . 1 9 . 1 . 2 Indirectly . | . . . . . . . . . . . . Trap Hack Attempts . | . . . . . . . . . . . . Triggered . | . . . . . . . . . . . . Disarmed . | . . . . . . . . . . . . Reprogrammed . | . . . . . . . . . . . . Reused . | . . . . . . . . . . . . Traps Extracted . | . . . . . . . . . . . . Installed . | . . . . . . . . . . . . Triggered . | . . . . . . . . . . . . Machines | -11 -10 -10 -9 -9 -9 -7 -7 -7 -6 -6 -6 ---------- Run | Yrd Mat Min Mat Sto Rec Fac Gar Fac Fac Was Fac Machines Disabled 35 | . 1 1 4 3 3 2 6 1 1 . 13 Max in Single Turn 9 | . 1 1 1 1 1 1 1 1 1 . 9 Garrison Access 1 | . . . . . . . . . . . 1 Garrison Relay 2 | . . . . . . . 2 . . . . Phase Generator 1 | . . . . . . . 1 . . . . Machines Repaired . | . . . . . . . . . . . . Machines Dismantled . | . . . . . . . . . . . . Machines Sabotaged . | . . . . . . . . . . . . Overloaded Fab Kills . | . . . . . . . . . . . . Hacking | -11 -10 -10 -9 -9 -9 -7 -7 -7 -6 -6 -6 --------- Run | Yrd Mat Min Mat Sto Rec Fac Gar Fac Fac Was Fac Machines Accessed 35 | . 6 . 7 3 6 3 1 4 . . 5 Terminals 21 | . 4 . 4 3 2 1 1 3 . . 3 Fabricators . | . . . . . . . . . . . . Repair Stations . | . . . . . . . . . . . . Recycling Units 7 | . 2 . 2 . 3 . . . . . . Scanalyzers 4 | . . . 1 . . 1 . 1 . . 1 Garrison Access 2 | . . . . . . 1 . . . . 1 Total Hacks 69 | . 12 . 18 4 10 5 2 10 . . 8 Successful 36 | . 5 . 6 4 9 2 . 6 . . 4 Failed 30 | . 6 . 11 . 1 3 2 3 . . 4 Catastrophic 7 | . 2 . 2 . . . . 2 . . 1 Database Lockouts 3 | . 1 . 1 . . . . 1 . . . Manual 43 | . 10 . 10 2 10 2 2 2 . . 5 Terminals 44 | . 10 . 13 4 4 2 2 4 . . 5 Fabricators . | . . . . . . . . . . . . Repair Stations . | . . . . . . . . . . . . Recycling Units 8 | . 2 . 2 . 4 . . . . . . Scanalyzers 13 | . . . 3 . . 2 . 6 . . 2 Garrison Access 2 | . . . . . . 1 . . . . 1 Terminal Hacks 12 | . 2 . 1 3 5 . . 1 . . . Part Schematic 1 | . . . . . 1 . . . . . . Robot Analysis 3 | . 1 . . . 2 . . . . . . Open Door 1 | . . . . 1 . . . . . . . Level Access Points 1 | . . . . . . . . 1 . . . Branch Access Points 2 | . . . 1 1 . . . . . . . Recycling Unit Index 1 | . 1 . . . . . . . . . . Zone Layout 1 | . . . . 1 . . . . . . . Release Object 2 | . . . . . 2 . . . . . . Fabricator Hacks . | . . . . . . . . . . . . Repair Station Hacks . | . . . . . . . . . . . . Recycling Unit Hacks . | . . . . . . . . . . . . Scanalyzer 9 | . . . 2 . . . . 5 . . 2 Retrieve Study 9 | . . . 2 . . . . 5 . . 2 Garrison Access Hacks 2 | . . . . . . 1 . . . . 1 Unlock Access 1 | . . . . . . 1 . . . . . Seal Access 1 | . . . . . . . . . . . 1 Unauthorized Hacks 13 | . 3 . 3 1 4 1 . . . . 1 Terminals 6 | . 1 . 1 1 1 1 . . . . 1 Botnet 6 | . 1 . 1 1 1 1 . . . . 1 Fabricators . | . . . . . . . . . . . . Repair Stations . | . . . . . . . . . . . . Recycling Units 7 | . 2 . 2 . 3 . . . . . . Mask 1 | . . . . . 1 . . . . . . Tunnel 6 | . 2 . 2 . 2 . . . . . . Scanalyzers . | . . . . . . . . . . . . Garrison Access . | . . . . . . . . . . . . Data Cores Recovered . | . . . . . . . . . . . . Used . | . . . . . . . . . . . . Hacking Detections 21 | . 4 . 3 1 3 2 1 3 . . 4 Full Trace Events 2 | . 1 . . . . . 1 . . . . Feedback Events . | . . . . . . . . . . . . Feedback Blocked . | . . . . . . . . . . . . Robot Schematics Acquired . | . . . . . . . . . . . . Robots Built . | . . . . . . . . . . . . Authchips . | . . . . . . . . . . . . Time . | . . . . . . . . . . . . Total Robot Build Rating . | . . . . . . . . . . . . Part Schematics Acquired 1 | . . . . . 1 . . . . . . Parts Built . | . . . . . . . . . . . . Authchips . | . . . . . . . . . . . . Time . | . . . . . . . . . . . . Total Part Build Rating . | . . . . . . . . . . . . Part Studies Acquired 9 | . . . 2 . . . . 5 . . 2 Parts Repaired . | . . . . . . . . . . . . Time . | . . . . . . . . . . . . Parts Recycled . | . . . . . . . . . . . . Recycled Matter . | . . . . . . . . . . . . Retrieved Matter . | . . . . . . . . . . . . Retrieved Components . | . . . . . . . . . . . . Parts Scanalyzed . | . . . . . . . . . . . . Part Schematics Acquired . | . . . . . . . . . . . . Parts Damaged . | . . . . . . . . . . . . Bothacking | -11 -10 -10 -9 -9 -9 -7 -7 -7 -6 -6 -6 ------------ Run | Yrd Mat Min Mat Sto Rec Fac Gar Fac Fac Was Fac Used RIF Installer 1 | . . . . . . . 1 . . . . Robots Hacked 7 | . . . . . . . . . 1 6 . Non-combat 1 | . . . . . . . . . 1 . . Combat 6 | . . . . . . . . . . 6 . Robot Hacks Applied 7 | . . . . . . . . . 1 6 . find_chute 1 | . . . . . . . . . 1 . . ignore_targets 6 | . . . . . . . . . . 6 . Relay Couplers Released 11 | . . . . . . . 9 . . . 2 Machine Destruction 11 | . . . . . . . 9 . . . 2 Attached 1 | . . . . . . . . 1 . . . Fabnet Peak Effective % . | . . . . . . . . . . . . Robots Rewired . | . . . . . . . . . . . . Allies Hacked . | . . . . . . . . . . . . Hacks Repelled . | . . . . . . . . . . . . Allies | -11 -10 -10 -9 -9 -9 -7 -7 -7 -6 -6 -6 -------- Run | Yrd Mat Min Mat Sto Rec Fac Gar Fac Fac Was Fac Total Allies 4 | . . 4 . . . . . . . . . Largest Group 4 | . . 4 3 . . . . . . . . Highest-Rated Group 71 | . . 71 40 . . . . . . . . Highest-Rated Ally 31 | . . 31 16 . . . . . . . . Total Orders . | . . . . . . . . . . . . Ally Attacks 89 | . . 2 87 . . . . . . . . Total Damage 941 | . . 13 928 . . . . . . . . Kills 14 | . . . 14 . . . . . . . . Allies Corrupted . | . . . . . . . . . . . . Allies Melted . | . . . . . . . . . . . . Intel | -11 -10 -10 -9 -9 -9 -7 -7 -7 -6 -6 -6 ------- Run | Yrd Mat Min Mat Sto Rec Fac Gar Fac Fac Was Fac Active Infowar (turns) 2497 | . . . . . . . 439 242 585 5 1226 Sensors 1688 | . . . . . . . . . 490 5 1193 Terrain 416 | . . . . . . . . . . . 416 Traps 794 | . . . . . . . 439 242 95 . 18 Robot Analysis Total 3 | . 1 . . . 2 . . . . . . Derelict Logs Recovered 2 | . . 2 . . . . . . . . . Drone Launches . | . . . . . . . . . . . . Drone Recoveries . | . . . . . . . . . . . . Exploration | -11 -10 -10 -9 -9 -9 -7 -7 -7 -6 -6 -6 ------------- Run | Yrd Mat Min Mat Sto Rec Fac Gar Fac Fac Was Fac Turns Passed 13878 | . 871 1269 1359 851 1753 1855 2570 520 585 520 1725 Spaces Moved 5168 | 1 434 726 596 269 444 596 759 202 220 148 773 Core . | . . . . . . . . . . . . Treads 3168 | . 323 512 403 269 444 134 320 202 220 148 193 Legs 112 | 1 111 . . . . . . . . . . Wheels 1563 | . . 214 193 . . 357 219 . . . 580 Hover 325 | . . . . . . 105 220 . . . . Flight . | . . . . . . . . . . . . Fastest Speed 115 | 120 120 130 115 240 240 186 186 250 250 248 130 Average Speed 214 | 120 149 157 196 240 281 217 287 250 250 249 173 Slowest Speed 456 | 120 160 240 320 240 320 401 456 250 250 250 336 Overloaded Moves . | . . . . . . . . . . . . Propulsion Burnouts . | . . . . . . . . . . . . Robots Hopped . | . . . . . . . . . . . . Potential Cave-ins . | . . . . . . . . . . . . Cave-ins Triggered . | . . . . . . . . . . . . Exploration Rate (%) 50 | 2 88 94 60 59 87 17 79 8 8 76 31 Regions Visited 11 Branch Regions 3 Pre-discovered Areas 6 | . 2 . 2 . 2 . . . . . . Known Exits Taken 4 | . . . 1 1 . 1 . 1 . . . Unknown Exits Taken 4 | 1 1 1 . . 1 . . . . . . Scrap Searched 2 | . . 2 . . . . . . . . . Spaces Dug 27 | . . . . . . 4 2 . 7 . 14 Terrain Destroyed 130 | . . . . . 1 19 37 . 9 . 64 Melee . | . . . . . . . . . . . . Projectile 74 | . . . . . 1 19 7 . 9 . 38 AOE 56 | . . . . . . . 30 . . . 26 Terrain Rammed . | . . . . . . . . . . . . Walls Destroyed . | . . . . . . . . . . . . Machines Disabled . | . . . . . . . . . . . . Actions | -11 -10 -10 -9 -9 -9 -7 -7 -7 -6 -6 -6 --------- Run | Yrd Mat Min Mat Sto Rec Fac Gar Fac Fac Was Fac Total 7061 | . 546 793 701 394 910 1073 976 220 246 210 992 Wait 942 | . 24 33 22 65 394 299 32 3 1 3 66 Move 5158 | . 433 725 595 268 443 596 757 201 220 147 773 Hop . | . . . . . . . . . . . . Pick Up 109 | . 15 2 15 6 10 33 9 4 5 . 10 Fast Attach 36 | . 2 . 8 4 . 5 6 . . 4 7 Attach 43 | . 6 1 4 . 5 9 10 . 2 . 6 Detach 10 | . . . . . 5 1 4 . . . . Swap 70 | . 2 2 7 1 . 3 10 5 3 10 27 Drop 107 | . 6 2 13 11 17 29 7 6 4 2 10 Fire 543 | . 58 28 37 39 36 98 98 1 11 44 93 Melee . | . . . . . . . . . . . . Ram . | . . . . . . . . . . . . Kick . | . . . . . . . . . . . . Crush . | . . . . . . . . . . . . Escape Stasis 43 | . . . . . . . 43 . . . . Rewire . | . . . . . . . . . . . . Trap . | . . . . . . . . . . . . Miscellaneous . | . . . . . . . . . . . . Route ------- -11/Scrapyard -10/Materials (discovered 5 exits: *Mat x3 / [*Min] / [*Sub]) -10/Mines (discovered 4 exits: *Mat x2 / [*Exi] / [*Sub]) -9/Materials (discovered 5 exits: [*Mat x3] / *Min / *Sto) -9/Storage -9/Recycling -7/Factory (discovered 2 exits: *Fac / Gar) -7/Garrison (discovered 3 exits: *Fac x3) -7/Factory (discovered 4 exits: *Fac x4) -6/Factory -6/Waste -6/Factory History --------- Turn | Location | Event 1 | -11/Scrapyard | Discovered new exit (range 0) 1 | -11/Scrapyard | Entered Materials 203 | -10/Materials | Discovered new exit (range 8) 301 | -10/Materials | Build established: Mutant 304 | -10/Materials | Discovered new exit (range 11) 614 | -10/Materials | Discovered new exit (range 6) 752 | -10/Materials | Discovered new exit (range 5) 775 | -10/Materials | Discovered new exit (range 15) 799 | -10/Materials | Core integrity fell below 50% 843 | -10/Materials | Central database locked down 872 | -10/Materials | Entered Mines 930 | -10/Mines | Discovered new exit (range 7) 1231 | -10/Mines | Learned Materials emergency access door positions 1249 | -10/Mines | Assisted by bots powering up and referring to "LRC-V3" 1534 | -10/Mines | Discovered new exit (range 5) 1581 | -10/Mines | Deemed a non-threat by the Exiles lab entrance 1719 | -10/Mines | Learned Materials emergency access door positions 1756 | -10/Mines | Received a Mining Laser from a helpful Derelict 1886 | -10/Mines | Discovered new exit (range 10) 2011 | -10/Mines | Discovered new exit (range 6) 2141 | -10/Mines | Entered Materials 2141 | -9/Materials | Accompanied by 3 allies 2141 | -9/Materials | Evolved 2 slots: Utility x1, Weapon x1 2485 | -9/Materials | Build established: Gunner 2675 | -9/Materials | Central database locked down 2687 | -9/Materials | Discovered new exit (range 5) 2739 | -9/Materials | Discovered new exit (range 15) 2830 | -9/Materials | Discovered new exit (range 15) 3289 | -9/Materials | Identified exit to Mines 3289 | -9/Materials | Identified exit to Storage 3341 | -9/Materials | First assault squad dispatched 3438 | -9/Materials | Discovered new exit (range 16) 3500 | -9/Materials | Entered Storage 3631 | -9/Storage | Identified exit to Recycling 3707 | -9/Storage | Build established: Scavenger-Gunner 4342 | -9/Storage | Used back door to open Recycling access 4351 | -9/Storage | Entered Recycling 4444 | -9/Recycling | Scanned before Scraplab entrance 4477 | -9/Recycling | Entered Scraplab 4487 | -9/Recycling | Angered Scraplab inhabitants 4487 | -9/Recycling | Found Prototype Device 4490 | -9/Recycling | Core integrity fell below 50% 4523 | -9/Recycling | Identified Scrap Engine 4574 | -9/Recycling | Lost 3 parts (1p1u1w) 5052 | -9/Recycling | Build established: Construct 6021 | -9/Recycling | Discovered new exit (range 15) 6104 | -9/Recycling | Entered Factory 6104 | -7/Factory | Evolved 4 slots: Power x1, Propulsion x1, Utility x2 7455 | -7/Factory | Discovered new exit (range 15) 7959 | -7/Factory | Identified exit to Garrison 7959 | -7/Factory | Entered Garrison 8155 | -7/Garrison | Triggered checkpoint 8170 | -7/Garrison | Heavy support dispatched to Factory 8444 | -7/Garrison | Triggered checkpoint 8536 | -7/Garrison | Core integrity fell below 50% 8621 | -7/Garrison | Lost 5 parts (1p1n1u2w) 8817 | -7/Garrison | Triggered checkpoint 8969 | -7/Garrison | Garrison Relay disabled 9074 | -7/Garrison | Discovered new exit (range 10) 9151 | -7/Garrison | Build established: Gunner 9520 | -7/Garrison | H-XX Assembler disabled 9691 | -7/Garrison | Garrison Relay disabled 9788 | -7/Garrison | Discovered new exit (range 10) 9904 | -7/Garrison | Build established: Tank 10049 | -7/Garrison | Triggered checkpoint 10113 | -7/Garrison | Discovered new exit (range 10) 10179 | -7/Garrison | Phase Generator disabled 10180 | -7/Garrison | Core integrity fell below 20% 10315 | -7/Garrison | Installed Relay Interface Framework 10315 | -7/Garrison | Spotted B-75 Beast 10343 | -7/Garrison | Destroyed B-75 Beast 10529 | -7/Garrison | Entered Factory 10754 | -7/Factory | Identified exit to Factory 10925 | -7/Factory | Central database locked down 10929 | -7/Factory | First assault squad dispatched 11049 | -7/Factory | Entered another Factory area 11049 | -6/Factory | Evolved 2 slots: Propulsion x1, Utility x1 11435 | -6/Factory | Build established: Skirmisher 11634 | -6/Factory | Manually triggered Chute Trap 11634 | -6/Factory | Sucked down chute 11634 | -6/Factory | Entered Waste 11648 | -6/Waste | Spotted C-40 Crusher 11649 | -6/Waste | EMP discharged 11654 | -6/Waste | Spotted C-40 Crusher 11743 | -6/Waste | Spotted C-40 Crusher 11749 | -6/Waste | EMP discharged 11749 | -6/Waste | System corruption reached 10% 11801 | -6/Waste | Spotted C-40 Crusher 11814 | -6/Waste | Spotted C-40 Crusher 11823 | -6/Waste | Destroyed C-40 Crusher 11849 | -6/Waste | EMP discharged 11892 | -6/Waste | Spotted C-40 Crusher 11937 | -6/Waste | Build established: Tank 11949 | -6/Waste | EMP discharged 12048 | -6/Waste | Destroyed C-40 Crusher 12049 | -6/Waste | EMP discharged 12049 | -6/Waste | System corruption reached 30% 12100 | -6/Waste | Discovered new exit (range 16) 12149 | -6/Waste | EMP discharged 12151 | -6/Waste | Identified exit to Factory 12154 | -6/Waste | Entered Factory 12444 | -6/Factory | Build established: Skirmisher 12738 | -6/Factory | Lost 3 parts (1p1u1w) 12747 | -6/Factory | Destroyed 7 combat bots 12966 | -6/Factory | Cargo convoy interrupted 13879 | -6/Factory | Self-destructed Last Messages --------------- 13873_ Knocked back. 13874_ Triggered Heavy Explosive Trap. 13874_ An explosion rips through the floor. 13874_ Treaded Heavy Exoskeleton destroyed. 13874_ Arm. Scrap Engine damaged due to network destabilization (-8). 13874_ U-05 Engineer lays Concrete. 13875_ Penetrated by Slug. 13875_ Angular-Deuterium Engine destroyed. 13875_ Arm. Scrap Engine damaged due to network destabilization (-6). 13876_ U-05 Engineer builds a Wall. 13876_ Destroyed Cooling System. 13876_ Phase Cannon destroyed. 13877_ Penetrated by Slug. 13877_ Hvy. Plasma Cannon+ destroyed. 13877_ U-05 Engineer lays Concrete. 13878_ U-05 Engineer builds a Wall. 13878_ Penetrated by Slug. 13878_ Com. Wheel destroyed. Map ----- +----------------------------------------------------+ | ?#?#???# """" ## """"""""" # | | ######## """" ## # | | # # """" ## """"""""" # | | # # """" ## # | | # """ # ## # | | # """ #+##+############+######## | | # """ # | | # # | | # """ + """""" """"""??""""" | | # """ # """""" "?????????""" | | # """ # """""" """??????""" | | # # """""" ""???????"" | | # """ # ??? | | # """ + h ??? | | # """ # ###/#;H#????????? | | # # # gg ###??????? | | ######## # ! ; ???????? ? | | ???????# # *%! ##????????????### | | ???????# #! * "#??????????????? | | ?????###%g!|% #???????????????? | | ?????# #u;% #???????????????? | | ????## #u ##+##???????????????? | | ????# # ###??????????????? | | ????# % ""#??????????????? | | ????# " ""#??????????????? | | ????# @ " Y"#??????????????? | | ????# % ""#??????????????? | | ????# ""#??????????????? | | ??? ###??????????????? | | ? ! # """ #????????????????? | | # # """ #????????????????? | | # # """ #????????????????? | | # # ^ #????????????????? | | # # ""?? #????????????????? | | # ? ""????????????????????? | | # ? "?????????????????????? | | # ?? ?????????????????????? | | # ?? ?????????????????????? | | ? [ ?? ?????????????????????? | | ????? ?? ?????????????????????? | | ???????? ?????????????????????? | | ????????????????????????????????? | | ????????????????????????????????? | | ????????????????????????????????? | | ????????????????????????????????? | | ????????????????????????????????? | | ????????????????????????????????? | | ????????????????????????????????? | | ????????????????????????????????? | | ????????????????????????????????? | +----------------------------------------------------+ Best States ------------- Heat Dissipation 83 Energy Generation 35 Energy Capacity 535 Matter Stores 300 Matter Capacity 300 Sight Range 16 Robot Scan Range 15 Terrain Scan Range 20 Terrain Scan Density 10 EM Shielding 2 Resistance: EM 25 Evasion (%) 55 Recoil Reduction 4 Relay Coupler Types 1 Relay Coupler Value 26 Item Schematics ----------------- Cryofiber Web | -9/Recycling | Hacked Robot Schematics ------------------ None Fabricated ------------ Nothing Repaired ---------- Nothing Studied --------- Lgt. Treads | -9/Materials | Hacked Particle Cannon | -9/Materials | Hacked Flak Cannon | -7/Factory | Hacked Gatling Laser | -7/Factory | Hacked Gauss Rifle | -7/Factory | Hacked Gravmag System | -7/Factory | Hacked Rnf. Deuterium Engine | -7/Factory | Hacked Flak Gun | -6/Factory | Hacked Hvy. Plasma Cannon | -6/Factory | Hacked Alien Tech Used ----------------- None Achievements -------------- None Challenges ------------ None Game ------ Seed DirtyHardcellRipteeth Manual? 0 Play Time 01:16:36 Cumulative 419.1 hours Start 2026.09.16 @ 13:21:41 End 2026.09.16 @ 20:30:18 Sessions 3 Manual Loads 0 Difficulty Rogue Special Mode None Game No. 369 Rogue 315 Adventurer 54 Explorer 0 Win Type - Total 25 Types 15/2/1/1/1/1/1/1/1/1 Lore% 83 Gallery% 71 Achievement% 72 Wizard Run 0 Options --------- Layout 1 ASCII 0 Keyboard 0 Movement Mouse Keybinds 1 Fullscreen 2 Font 32/Tamsyn Map View 50x35 Zoom Use 0% Tactical HUD 1 Map Filters NONE Filters NONE Steam 1 RUN: ae9870a0-ecea-4b5e-a53c-e0203f45f476